Cogmind - Beta 10.1 @@@ ROGUE MODE // 2020.10.09 @ 16:19:57 Player: aperiodic Result: Destroyed by D-53 Grenadier with Mini Grenade Launcher Performance ------------- Evolutions (0) 0 Regions Visited (2) 400 Robots Destroyed (10) 50 Value Destroyed (166) 166 Prototype IDs (0) 0 Alien Tech Used (0) 0 Bonus (0) 0 TOTAL SCORE: 616 Bonus ------- None Cogmind --------- Core Integrity 0/250 Matter 300/300 Energy 100/100 System Corruption 0% Temperature Cool (0) Movement Core (300) Ox5 Location -10/Mines Parts ------- > --- POWER (1) -------- (None) > --- PROPULSION (2) --- (None) > --- UTILITY (2) ------ Large Storage Unit > --- WEAPON (2) ------- (None) > --- INVENTORY (10) --- Ion Engine Light Treads Light Treads Aluminum Leg Aluminum Leg Small Storage Unit Medium Laser Beam Cannon Light Assault Rifle Mining Claw Peak State ------------ > --- POWER ------------ Ion Engine > --- PROPULSION ------- Aluminum Leg Aluminum Leg > --- UTILITY ---------- Small Storage Unit Light Armor Plating > --- WEAPON ----------- Medium Laser Light Assault Rifle > --- INVENTORY -------- Ion Engine Light Treads Light Treads Aluminum Leg Medium Laser Beam Cannon [Rating: 7] Favorites ----------- Power Ion Engine Engine Ion Engine Propulsion Aluminum Leg Leg Aluminum Leg Utility Small Storage Unit Storage Small Storage Unit Protection Light Armor Plating Weapon Light Assault Rifle Energy Gun Medium Laser Ballistic Gun Light Assault Rifle Build | -11 -10 -10 ------- Run | Scr Mat Min Slots Evolved . | . . . Power . | . . . Propulsion . | . . . Utility . | . . . Weapon . | . . . Parts Attached 9 | 5 3 1 Power 1 | 1 . . Engine 1 | 1 . . Core . | . . . Reactor . | . . . Propulsion 3 | 2 . 1 Treads . | . . . Leg 3 | 2 . 1 Wheel . | . . . Hover . | . . . Flight . | . . . Utility 3 | 1 2 . Device . | . . . Storage 2 | 1 1 . Processor . | . . . Hackware . | . . . Protection 1 | . 1 . Artifact . | . . . Weapon 2 | 1 1 . Energy Gun 1 | . 1 . Energy Cannon . | . . . Ballistic Gun 1 | 1 . . Ballistic Cannon . | . . . Launcher . | . . . Special Weapon . | . . . Impact Weapon . | . . . Slashing Weapon . | . . . Piercing Weapon . | . . . Special Melee Weapon . | . . . Unidentified Prototypes . | . . . Parts Lost 6 | . . 6 Power 1 | . . 1 Propulsion 2 | . . 2 Utility 1 | . . 1 Weapon 2 | . . 2 Highest Loss Streak 5 | . . 5 Average Slot Usage (%) 90 | . 92 83 Engine 13 | . 14 13 Leg 28 | . 28 28 Storage 14 | . 14 14 Protection 5 | . 6 . Energy Gun 13 | . 14 13 Ballistic Gun 13 | . 14 13 Naked Turns . | . . . Heaviest Build 27 | 10 27 24 Greatest Support 20 | 20 20 20 Greatest Overweight (x) 5 | 1 1 5 Average Overweight (x) . | . . 1 Largest Inventory Capacity 10 | 6 10 10 Average Capacity 7 | 5 7 10 Most Carried 10 | 5 9 10 Average Carried 6 | 3 6 9 Final Capacity 10 | 6 10 10 Final Carried 10 | 5 9 10 Class Distribution -------------------- 100% | Mutant Dominant Class ---------------- Mutant | -10/Materials Mutant | -10/Mines Resources | -11 -10 -10 ----------- Run | Scr Mat Min Matter Collected 312 | 250 50 12 Remotely . | . . . Salvage Created 298 | . 215 83 Parts 25 | . 22 3 Haulers Intercepted 2 | . 2 . Recyclers Shooed . | . . . Parts Field Recycled . | . . . Retrieved Matter . | . . . Parts Self-Destructed . | . . . Prevented . | . . . Kills | -11 -10 -10 ------- Run | Scr Mat Min Combat Hostiles Destroyed 6 | . 4 2 Guns 6 | . 4 2 Classes Destroyed 5 | . 5 . Worker 1 | . 1 . Hauler 2 | . 2 . Watcher 1 | . 1 . Swarmer 3 | . 3 . Grunt 3 | . 1 2 Best Kill Streak 4 | . 4 2 Combat Bots Only 3 | . 3 2 Max Kills in Single Turn 1 | . 1 1 Gunslinging . | . . . Exploded . | . . . Melee . | . . . Uniques/NPCs Destroyed . | . . . Combat | -11 -10 -10 -------- Run | Scr Mat Min Damage Taken 682 | . 59 623 Core 259 | . 10 249 Absorbed by Shields . | . . . Core Remaining (%) 100 | 100 . . Volleys Fired 25 | . 20 5 Largest 2 | . 2 2 Hottest 70 | . 70 70 Shots Fired 48 | . 38 10 Gun 48 | . 38 10 Cannon . | . . . Launcher . | . . . Special . | . . . Kinetic 25 | . 20 5 Thermal 23 | . 18 5 Explosive . | . . . Electromagnetic . | . . . Robot Hit Streak 12 | . 5 12 Robot Miss Streak 2 | . 2 . Penetration Max . | . . . Secondary Targets 2 | . 1 1 Max Gunslinging Chain 1 | . 1 1 Shots Hit Robots 31 | . 21 10 Core Hits 17 | . 11 6 Critical Hits . | . . . Critical Kills . | . . . Critical Parts Destroyed . | . . . Melee Attacks . | . . . Impact . | . . . Slashing . | . . . Piercing . | . . . Sneak Attacks . | . . . Combat Hostiles . | . . . Follow-up Attacks . | . . . Damage Inflicted 313 | . 212 101 Guns 313 | . 212 101 Cannons . | . . . Explosions . | . . . Melee . | . . . Ramming . | . . . Kinetic 102 | . 63 39 Thermal 211 | . 149 62 Explosive . | . . . Electromagnetic . | . . . Impact . | . . . Slashing . | . . . Piercing . | . . . Highest Corruption . | . . . Average Corruption . | . . . Corruption Purged . | . . . Overload Shots . | . . . Overflow Damage . | . . . Projectiles . | . . . Explosions . | . . . Melee . | . . . Knockbacks . | . . . Impact . | . . . Kinetic . | . . . Secondary . | . . . Self-Inflicted Damage . | . . . Shots . | . . . Rammed . | . . . Targets Rammed . | . . . Kicked . | . . . Crushed . | . . . Highest Temperature 160 | . 93 160 Average Temperature 49 | . 35 91 Received Heat Transfer 78 | . 12 66 Siege Activations . | . . . Robots Corrupted . | . . . Combat Hostiles . | . . . Parts Fried . | . . . Impact Corruptions . | . . . Robots Melted . | . . . Combat Hostiles . | . . . Parts Melted . | . . . Heat Transferred 629 | . 444 185 Parts Sabotaged . | . . . Parts Stolen . | . . . Parts Stripped . | . . . Power Chain Reactions . | . . . Missiles Intercepted . | . . . Alert | -11 -10 -10 ------- Run | Scr Mat Min Peak Influence 99 | . 99 78 Initial 38 | . . 38 Average 41 | . 38 67 Maximum Alert Level . | . . . Low Security (%) 100 | 100 100 100 Level 1 . | . . . Level 2 . | . . . Level 3 . | . . . Level 4 . | . . . Level 5 . | . . . High Security . | . . . Max Security . | . . . Squads Dispatched 1 | . 1 . Investigation . | . . . Extermination . | . . . Reinforcement 1 | . 1 . Assault . | . . . Garrison . | . . . Intercept . | . . . Construction Impeded . | . . . Haulers Reinforced . | . . . Stealth | -11 -10 -10 --------- Run | Scr Mat Min Distress Signals . | . . . Communications Jammed . | . . . Distress Signals . | . . . Times Spotted 14 | . 10 4 Peak Tracking Total 3 | . 3 2 Tactical Retreats . | . . . Traps | -11 -10 -10 ------- Run | Scr Mat Min Traps Triggered . | . . . Indirectly . | . . . Trap Hack Attempts . | . . . Triggered . | . . . Disarmed . | . . . Reprogrammed . | . . . Reused . | . . . Traps Extracted . | . . . Installed . | . . . Triggered . | . . . Machines | -11 -10 -10 ---------- Run | Scr Mat Min Machines Disabled . | . . . Max in Single Turn . | . . . Machines Sabotaged . | . . . Garrisons Compromised . | . . . Overloaded Fab Kills . | . . . Fab Network Shutdowns . | . . . Hacking | -11 -10 -10 --------- Run | Scr Mat Min Machines Accessed 3 | . 3 . Terminals 2 | . 2 . Fabricators . | . . . Repair Stations . | . . . Recycling Units 1 | . 1 . Scanalyzers . | . . . Garrison Access . | . . . Total Hacks 3 | . 3 . Successful 2 | . 2 . Failed 1 | . 1 . Catastrophic 1 | . 1 . Database Lockouts . | . . . Manual 1 | . 1 . Terminals 2 | . 2 . Fabricators . | . . . Repair Stations . | . . . Recycling Units 1 | . 1 . Scanalyzers . | . . . Garrison Access . | . . . Terminal Hacks 1 | . 1 . Locate Traps 1 | . 1 . Fabricator Hacks . | . . . Repair Station Hacks . | . . . Recycling Unit Hacks 1 | . 1 . Retrieve Components 1 | . 1 . Scanalyzer . | . . . Garrison Access Hacks . | . . . Unauthorized Hacks . | . . . Terminals . | . . . Fabricators . | . . . Repair Stations . | . . . Recycling Units . | . . . Scanalyzers . | . . . Garrison Access . | . . . Data Cores Recovered . | . . . Used . | . . . Hacking Detections 2 | . 2 . Full Trace Events . | . . . Feedback Events . | . . . Feedback Blocked . | . . . Robot Schematics Acquired . | . . . Robots Built . | . . . Matter . | . . . Time . | . . . Total Robot Build Rating . | . . . Part Schematics Acquired . | . . . Parts Built . | . . . Matter . | . . . Time . | . . . Total Part Build Rating . | . . . Parts Repaired . | . . . Time . | . . . Parts Recycled . | . . . Recycled Matter . | . . . Retrieved Matter . | . . . Retrieved Components 3 | . 3 . Parts Scanalyzed . | . . . Part Schematics Acquired . | . . . Parts Damaged . | . . . Bothacking | -11 -10 -10 ------------ Run | Scr Mat Min Used RIF Installer . | . . . Robots Hacked . | . . . Non-combat . | . . . Combat . | . . . Robot Hacks Applied . | . . . Relay Couplers Released . | . . . Robots Rewired . | . . . Allies Hacked . | . . . Hacks Repelled . | . . . Allies | -11 -10 -10 -------- Run | Scr Mat Min Total Allies 2 | . . 2 Largest Group 2 | . . 2 Highest-Rated Group 39 | . . 39 Highest-Rated Ally 31 | . . 31 Total Orders . | . . . Ally Attacks 2 | . . 2 Total Damage . | . . . Kills . | . . . Allies Corrupted . | . . . Allies Melted . | . . . Intel | -11 -10 -10 ------- Run | Scr Mat Min Robot Analysis Total . | . . . Derelict Logs Recovered 2 | . . 2 Drone Launches . | . . . Drone Recoveries . | . . . Exploration | -11 -10 -10 ------------- Run | Scr Mat Min Turns Passed 876 | 82 602 192 Spaces Moved 506 | 62 329 115 Core 14 | 12 . 2 Treads . | . . . Legs 492 | 50 329 113 Wheels . | . . . Hover . | . . . Flight . | . . . Fastest Speed 50 | 50 120 120 Average Speed 131 | 109 128 151 Slowest Speed 300 | 120 150 300 Overloaded Moves . | . . . Propulsion Burnouts . | . . . Robots Hopped . | . . . Cave-ins Triggered . | . . . Exploration Rate (%) 31 | 5 57 33 Regions Visited 2 Branch Regions 1 Pre-discovered Areas 1 | . . 1 Known Exits Taken . | . . . Unknown Exits Taken 2 | 1 1 . Scrap Searched 2 | . . 2 Spaces Dug . | . . . Terrain Destroyed . | . . . Melee . | . . . Projectile . | . . . AOE . | . . . Terrain Rammed . | . . . Walls Destroyed . | . . . Machines Disabled . | . . . Actions | -11 -10 -10 --------- Run | Scr Mat Min Total 674 | 76 474 124 Wait 117 | . 117 . Move 504 | 61 328 115 Hop . | . . . Pick Up 17 | 10 5 2 Fast Attach 1 | . 1 . Attach 6 | 5 1 . Detach . | . . . Swap 2 | . 1 1 Drop 2 | . 1 1 Fire 25 | . 20 5 Melee . | . . . Ram . | . . . Kick . | . . . Crush . | . . . Escape Stasis . | . . . Rewire . | . . . Trap . | . . . Miscellaneous . | . . . Route ------- -11/Scrapyard -10/Materials (discovered 2 exits: [*Mat] / [*Min]) -10/Mines (discovered 1 exit: [*Mat]) History --------- Turn | Location | Event 6 | -11/Scrapyard | Discovered new exit (range 15) 83 | -11/Scrapyard | Entered Materials 305 | -10/Materials | Discovered new exit (range 5) 317 | -10/Materials | Build established: Mutant 630 | -10/Materials | Discovered new exit (range 9) 685 | -10/Materials | Entered Mines 732 | -10/Mines | Learned Materials stockpile data 777 | -10/Mines | Discovered new exit (range 7) 830 | -10/Mines | Assembled infested the area 862 | -10/Mines | Learned location of Storage (-8) 874 | -10/Mines | Core integrity fell below 50% 877 | -10/Mines | Destroyed by D-53 Grenadier with Mini Grenade Launcher Last Messages --------------- 00778_ Found 26 Matter. 00803_ K-01 Serf collects debris. 00830_ ALERT: Infestation in the mines, dispatching Demolisher response squad. 00843_ K-01 Serf collects debris. 00862_ Acquired derelict log, extracted data. World map updated: -8/Storage. 00863_ Med. Laser destroyed. 00867_ Ion Engine destroyed. 00867_ U-05 Engineer lays Concrete. 00868_ The unstable cave ceiling collapses. 00869_ Lgt. Assault Rifle destroyed. 00869_ U-05 Engineer lays Concrete. 00870_ The unstable cave ceiling collapses. 00870_ U-05 Engineer builds a Wall. 00871_ Aluminum Leg destroyed. 00874_ The unstable cave ceiling collapses. 00875_ K-01 Serf collects debris. 00875_ U-05 Engineer builds a Wall. 00876_ The unstable cave ceiling collapses. Map ----- +----------------------------------------------------+ | ?????????????####### #### #???????????? | | ??????????????????## ##?????????????????????? | | ??????????????????# #??????????????????????? | | ??????????????????# #??????????????????????? | | ??????????????????## ##??????????????????????? | | ???????????????????### ##???????????????????????? | | ?????????????????????# #????????????????????????? | | ?????????????????????# #????????????????????????? | | ?????????????????????# ##???????????????????????? | | ????????????????????## #???????????????????????? | | ??????????????????### #???????????????????????? | | ?????????????????## ##???????????????????????? | | ????????????????## ##????????????????????????? | | ????????????????## ?? ??????????????????????? | | ????????????????# ## ??????????????????????? | | ????????????????# ### ???????????????????????? | | ????????????????# ##%# #???????????????????????? | | ????????????#a#### # #???????????????????????? | | ????????????# a # ##??????????????????????? | | ???????????????# # #??????????????????????? | | ????????????????# ## # #??????????????????????? | | ??????????????### # # # ###????????????????????? | | ??????????????# ##???????????????????? | | ?????????????## #???????????????????? | | ?????????????# d d #???????????????????? | | ?????????????# @ #???????????????????? | | ?????????????# # #???????????????????? | | ?????????????## # #??????????????????? | | ??????????????## ?????????????????? | | ???????????????#### ! k ???????????????? | | ??????????????????#####! ! ?????????????? | | ??????????????????????## ???????????? | | ???????????????????????##### ### #??????????? | | ????????????????????????????######???#???????????? | | ?????????????????????????????????????????????????? | | ?????????????????????????????????????????????????? | | | | | | | | | | | | | | | | | | | | | | | | | | | | | +----------------------------------------------------+ Best States ------------- Heat Dissipation 25 Energy Generation 10 Energy Capacity 250 Matter Stores 300 Matter Capacity 300 Sight Range 16 Terrain Scan Density 10 Armor Coverage 150 Evasion (%) 40 Item Schematics ----------------- None Robot Schematics ------------------ None Fabricated ------------ Nothing Alien Tech Used ----------------- None Achievements -------------- None Challenges ------------ None Game ------ Seed LinkedStormSheargun Manual? 0 Play Time 00:13:30 Cumulative 78.3 hours Start 2020.10.09 @ 16:08:13 End 2020.10.09 @ 16:19:57 Sessions 1 Manual Loads 0 Difficulty Rogue Special Mode None Game No. 41 Rogue 37 Adventurer 4 Explorer 0 Win Type - Total 0 Types 0/0/0/0/0/0/0/0/0 Lore% 43 Gallery% 54 Achievement% 42 Wizard Run 0 Options --------- ASCII 1 Keyboard 0 Movement Mouse Keybinds 0 Fullscreen 1 Font 18/SmallcapsGlow Map View 76x50 Tactical HUD 1 Map Filters NONE Filters NONE Steam 1 RUN: efebc2c0-4f1f-4429-8163-9bef9e343c27